bitfinex/quotes_SOLUSD_20251119
["timestamp","ask_amount","ask_price","bid_price","bid_amount"]
[1763585418500,18.78096,132.81,132.78,7.11247151]
[1763585418700,18.12096,132.81,132.78,7.11247151]
[1763585419017,2.46,132.83,132.8,7.11247151]
[1763585419708,2.46,132.83,132.81,7.11247151]
[1763585419909,1.8,132.83,132.78,62.77]
[1763585420106,1.8,132.83,132.8,7.11247151]
[1763585420107,0.65,132.82,132.8,7.11247151]
[1763585421229,2.45,132.83,132.81,7.11247151]
[1763585421799,0.65,132.86,132.82,7.11247151]
[1763585421997,18.77096,132.85,132.83,7.11247151]
[1763585422298,0.65,132.86,132.84,7.11247151]
[1763585422520,1.8,132.87,132.84,7.11247151]
[1763585422828,0.65,132.86,132.8,0.7]
[1763585423008,0.65,132.86,132.82,7.11247151]
[1763585423213,0.65,132.86,132.83,7.11247151]
[1763585423617,18.32096,132.88,132.85,7.11247151]
[1763585423928,0.2,132.88,132.87,7.11247151]
[1763585424130,0.2,132.88,132.87,7.81247151]
[1763585424538,0.2,132.88,132.85,0.7]
[1763585424712,0.65,132.87,132.81,18.82096]
[1763585424908,0.65,132.87,132.83,7.11247151]
[1763585425233,18.77096,132.87,132.83,7.11247151]
[1763585425419,18.77096,132.87,132.84,7.11247151]
[1763585425621,18.77096,132.87,132.83,7.11247151]
[1763585425816,0.69,132.86,132.82,7.11247151]
[1763585426017,0.69,132.86,132.83,7.11247151]
[1763585427611,0.69,132.86,132.82,7.11247151]
[1763585428012,0.69,132.86,132.77,1.8]
[1763585428013,18.12096,132.85,132.77,1.8]
[1763585428214,18.12096,132.85,132.82,7.11247151]
[1763585428540,18.81096,132.85,132.82,7.11247151]
[1763585428944,0.69,132.84,132.81,7.11247151]
[1763585429949,0.69,132.86,132.83,7.11247151]
[1763585430246,0.69,132.85,132.83,7.11247151]
[1763585430549,25.23343151,132.87,132.83,7.11247151]
[1763585430550,0.69,132.86,132.83,7.11247151]
[1763585430960,0.69,132.86,132.82,11.11536602]
[1763585431665,2.0,132.88,132.85,11.11536602]
[1763585431666,0.2,132.88,132.85,11.11536602]
[1763585431861,0.2,132.88,132.87,11.11536602]
[1763585432344,0.2,132.88,132.87,11.79536602]
[1763585433817,0.2,132.91,132.88,9.78882769]
[1763585434021,0.2,132.91,132.9,11.11536602]
[1763585434248,0.2,132.91,132.9,11.63536602]
[1763585436247,0.2,132.91,132.9,21.42419371]
[1763585437733,0.2,132.91,132.88,0.52]
[1763585437933,0.2,132.91,132.9,11.11536602]
[1763585438349,0.2,132.91,132.88,0.52]
[1763585438558,0.2,132.91,132.9,11.11536602]
[1763585438968,0.2,132.91,132.9,11.63536602]
[1763585439557,0.2,132.91,132.9,21.42419371]
[1763585440856,0.1,132.93,132.92,27.90978769]
[1763585441056,0.1,132.93,132.92,29.65632602]
[1763585441242,0.1,132.93,132.92,31.45632602]
[1763585442248,0.1,132.98,132.92,52.36051973]
[1763585442566,0.1,132.98,132.97,11.11536602]
[1763585443150,0.1,132.98,132.95,1.8]
[1763585443370,0.1,132.98,132.97,11.11536602]
[1763585443862,0.79,132.98,132.91,0.42]
[1763585444066,0.79,132.98,132.95,11.11536602]
[1763585444254,0.79,132.98,132.94,11.11536602]
[1763585444884,0.79,132.98,132.95,11.11536602]
[1763585445670,0.79,132.98,132.91,1.8]
[1763585445846,0.79,132.98,132.94,11.11536602]
[1763585446669,0.79,132.98,132.89,18.12096]
[1763585446670,11.11536602,132.97,132.89,18.12096]
[1763585446967,11.11536602,132.97,132.92,11.11536602]
[1763585447168,11.80536602,132.96,132.92,11.11536602]
[1763585447374,11.11536602,132.94,132.84,11.11536602]
[1763585447602,11.11536602,132.94,132.86,11.11536602]
[1763585447603,11.11536602,132.91,132.86,11.11536602]
[1763585447883,11.11536602,132.91,132.83,11.11536602]
[1763585447884,11.11536602,132.88,132.83,11.11536602]
[1763585448047,11.11536602,132.89,132.84,11.11536602]
[1763585448247,11.80536602,132.9,132.85,11.11536602]
[1763585448477,11.80536602,132.89,132.84,11.11536602]
[1763585448850,0.69,132.88,132.84,11.11536602]
[1763585449051,11.11536602,132.87,132.76,0.75323892]
[1763585449372,11.11536602,132.87,132.72,11.11536602]
[1763585449373,11.11536602,132.86,132.81,11.11536602]
[1763585449557,11.80536602,132.87,132.82,11.11536602]
[1763585449752,0.69,132.88,132.82,11.11536602]
[1763585449966,0.72,132.88,132.82,11.11536602]
[1763585450172,11.83536602,132.88,132.83,11.11536602]
[1763585450342,11.83536602,132.88,132.84,11.11536602]
[1763585450343,0.72,132.88,132.84,11.11536602]
[1763585450541,9.78882769,132.9,132.85,11.11536602]
[1763585450542,1.8,132.9,132.85,11.11536602]
[1763585450742,0.72,132.88,132.85,11.11536602]
[1763585451176,0.72,132.88,132.86,11.11536602]
[1763585452041,0.72,132.9,132.86,11.11536602]
[1763585452248,0.72,132.9,132.87,11.11536602]
[1763585454049,2.52,132.92,132.88,11.11536602]
[1763585454372,0.72,132.91,132.88,11.11536602]
[1763585455258,0.72,132.91,132.87,11.11536602]
[1763585455577,11.83536602,132.91,132.86,12.91536602]
[1763585455954,0.72,132.9,132.86,11.11536602]
[1763585456393,0.72,132.9,132.87,11.11536602]
[1763585456569,0.72,132.9,132.88,11.11536602]
[1763585456879,0.72,132.9,132.87,11.11536602]
[1763585457389,0.72,132.9,132.83,18.12096]
[1763585457390,11.83536602,132.9,132.83,18.12096]
[1763585457596,0.72,132.9,132.86,11.11536602]
[1763585457762,0.72,132.89,132.85,11.11536602]
[1763585458677,0.72,132.89,132.86,11.11536602]
[1763585460475,0.72,132.89,132.83,19.92096]
[1763585460476,11.11536602,132.87,132.82,11.11536602]
[1763585460668,0.72,132.89,132.84,11.11536602]
[1763585460982,0.72,132.9,132.88,11.11536602]
[1763585461160,1.8,132.93,132.88,11.11536602]
[1763585461161,0.72,132.92,132.88,11.11536602]
[1763585461356,12.91536602,132.93,132.88,11.11536602]
[1763585461357,0.72,132.93,132.89,0.42]
[1763585461562,0.72,132.93,132.91,11.11536602]
[1763585461866,11.83536602,132.93,132.86,1.8]
[1763585462062,10.50882769,132.93,132.88,11.11536602]
[1763585462288,0.72,132.92,132.86,2.22]
[1763585462464,0.72,132.92,132.9,11.11536602]
[1763585462652,2.52,132.96,132.91,11.11536602]
[1763585462857,0.72,132.96,132.93,11.11536602]
[1763585463178,11.83536602,132.95,132.9,11.11536602]
[1763585463373,0.72,132.94,132.9,11.11536602]
[1763585463683,0.72,132.94,132.92,11.11536602]
[1763585464067,11.83536602,132.94,132.89,11.11536602]
[1763585464270,11.83536602,132.93,132.88,12.91536602]
[1763585464472,0.72,132.92,132.89,11.11536602]
[1763585464670,0.72,132.92,132.9,11.11536602]
[1763585465067,0.72,132.92,132.89,11.11536602]
[1763585465283,0.72,132.92,132.9,11.11536602]
[1763585465483,20.64096,132.95,132.91,11.11536602]
[1763585465875,0.72,132.94,132.91,11.11536602]
[1763585466687,1.8,132.95,132.92,11.11536602]
[1763585466891,2.52,132.95,132.92,11.11536602]
[1763585467070,0.72,132.95,132.94,11.11536602]
[1763585467265,0.72,132.95,132.93,11.11536602]
[1763585468078,0.72,132.95,132.94,11.11536602]
[1763585468282,0.72,132.97,132.94,11.11536602]
[1763585469400,11.83536602,132.97,132.92,11.11536602]
[1763585469690,31.03632602,132.96,132.87,0.42]
[1763585469863,11.11536602,132.94,132.89,11.11536602]
[1763585470068,20.64096,132.96,132.9,11.11536602]
[1763585470069,11.83536602,132.95,132.9,11.11536602]
[1763585470396,0.72,132.95,132.92,11.11536602]
[1763585470613,11.11536602,132.97,132.93,11.11536602]
[1763585470614,0.72,132.97,132.93,11.11536602]
[1763585470904,0.72,132.97,132.94,11.11536602]
[1763585471400,20.02096,132.98,132.95,11.11536602]
[1763585471401,0.1,132.98,132.95,11.11536602]
[1763585471602,0.1,132.98,132.97,20.90419371]
[1763585472114,0.1,132.98,132.97,39.44515371]
[1763585472399,0.1,132.99,132.98,9.78882769]
[1763585472612,0.1,132.99,132.98,21.22419371]
[1763585472780,0.1,133.02,132.98,21.22419371]
[1763585472970,0.1,133.02,133.01,11.11536602]
[1763585473470,0.1,133.02,133.01,21.22419371]
[1763585473676,0.1,133.02,133.01,11.11536602]
[1763585473883,0.82,133.02,133.01,1.8]
[1763585474096,0.82,133.02,133.01,12.91536602]
[1763585474379,0.82,133.02,132.94,28.22978769]
[1763585474591,0.82,133.02,133.0,11.11536602]
[1763585474790,0.82,133.02,133.01,11.11536602]
[1763585475297,0.82,133.02,133.0,11.11536602]
[1763585476201,0.1,133.02,133.0,11.11536602]
[1763585476385,0.1,133.02,133.01,11.11536602]
[1763585476579,0.1,133.02,133.01,12.91536602]
[1763585476891,0.1,133.02,133.01,11.11536602]
[1763585477778,0.1,133.02,133.01,10.10882769]
[1763585477964,0.1,133.02,133.01,21.22419371]
[1763585478368,0.1,133.02,133.01,20.90419371]
[1763585479080,0.1,133.02,133.01,21.22419371]
[1763585479299,0.1,133.02,133.01,20.90419371]
[1763585479607,0.1,133.02,133.01,21.22419371]
[1763585479772,0.1,133.07,133.02,9.78882769]
[1763585479973,0.1,133.07,133.06,11.11536602]
[1763585480914,0.1,133.07,133.02,9.78882769]
[1763585481201,0.25,133.07,133.04,11.11536602]
[1763585481567,0.25,133.07,133.03,11.11536602]
[1763585481798,11.36536602,133.07,132.98,27.90978769]
[1763585481971,11.36536602,133.07,133.02,11.11536602]
[1763585482172,11.11536602,133.07,133.02,11.11536602]
[1763585482813,18.12096,133.08,133.02,11.11536602]
[1763585482986,18.12096,133.08,133.03,11.11536602]
[1763585483293,0.65,133.07,133.04,11.11536602]
[1763585483497,1.8,133.09,133.06,11.11536602]
[1763585483795,0.65,133.08,133.06,11.11536602]
[1763585484974,0.65,133.08,133.07,11.11536602]
[1763585485514,0.65,133.08,133.02,9.78882769]
[1763585485687,0.65,133.08,133.05,11.11536602]
[1763585486275,0.65,133.08,133.01,0.7]
[1763585486478,11.11536602,133.07,132.99,9.78882769]
[1763585486694,11.11536602,133.07,132.94,22.1943757]
[1763585486695,20.57096,133.08,133.06,11.11536602]
[1763585486897,0.65,133.08,133.03,1.8]
[1763585487085,0.65,133.08,133.06,11.11536602]
[1763585487301,0.65,133.08,133.07,11.11536602]
[1763585487496,0.68,133.1,133.07,11.11536602]
[1763585487690,0.68,133.1,133.04,0.72]
[1763585487691,0.68,133.1,133.08,11.11536602]
[1763585487892,0.68,133.1,133.04,0.72]
[1763585488089,0.68,133.1,133.09,11.11536602]
[1763585488288,0.68,133.1,133.08,11.11536602]
[1763585490381,19.92096,133.11,133.09,11.11536602]
[1763585490382,1.8,133.11,133.09,11.11536602]
[1763585490581,9.88882769,133.16,133.06,0.72]
[1763585490812,18.12096,133.14,133.11,11.11536602]
[1763585491000,18.12096,133.13,133.11,11.11536602]
[1763585491298,18.12096,133.14,133.12,11.11536602]
[1763585491481,1.8,133.15,133.09,1.8]
[1763585491690,1.8,133.15,133.12,11.11536602]
[1763585491898,0.1,133.16,133.14,11.11536602]
[1763585492085,0.1,133.16,133.15,11.11536602]
[1763585492416,0.1,133.16,133.14,1.8]
[1763585492580,0.1,133.16,133.15,11.11536602]
[1763585492784,0.1,133.16,133.15,7.05891694]
[1763585493092,0.78,133.16,133.15,7.05891694]
[1763585493293,0.78,133.16,133.13,1.8]
[1763585493613,0.78,133.16,133.15,7.05891694]
[1763585493781,0.1,133.16,133.15,7.05891694]
[1763585494208,0.1,133.16,133.07,9.78882769]
[1763585494209,18.12096,133.15,133.03,1.99999999]
[1763585494510,18.12096,133.15,133.01,0.75182317]
[1763585494511,18.12096,133.15,133.11,7.05891694]
[1763585494690,18.12096,133.13,133.11,7.05891694]
[1763585495081,18.80096,133.13,133.12,7.05891694]
[1763585495300,18.12096,133.14,133.09,0.72]
[1763585495502,0.68,133.15,133.12,7.05891694]
[1763585495693,28.00978769,133.16,133.14,7.05891694]
[1763585495694,0.1,133.16,133.14,7.05891694]
[1763585495893,0.1,133.16,133.13,0.72]
[1763585496120,18.90096,133.16,133.15,7.05891694]
[1763585496283,0.1,133.16,133.15,7.05891694]
[1763585496882,0.78,133.16,133.15,7.05891694]
[1763585498010,0.78,133.16,133.11,0.72]
[1763585498321,18.90096,133.16,133.14,7.05891694]
[1763585498807,0.68,133.15,133.11,0.72]
[1763585499200,0.68,133.15,133.14,7.05891694]
[1763585499411,0.1,133.16,133.14,7.05891694]
[1763585499590,0.1,133.17,133.15,7.77891694]
[1763585499785,0.1,133.17,133.16,0.72]
[1763585500093,0.1,133.17,133.16,8.85891694]
[1763585500297,0.78,133.17,133.16,7.05891694]
[1763585500717,18.90096,133.17,133.09,18.84096]
[1763585500885,16.84774463,133.16,133.11,7.05891694]
[1763585501220,17.52774463,133.16,133.11,7.05891694]
[1763585501402,0.68,133.15,133.11,7.05891694]
[1763585501790,0.68,133.15,133.07,0.72]
[1763585501791,18.12096,133.13,133.1,7.05891694]
[1763585502214,0.68,133.12,133.07,0.72]
[1763585502412,0.68,133.12,133.02,0.72]
[1763585502413,9.78882769,133.11,133.02,0.72]
[1763585502728,9.78882769,133.11,133.07,7.05891694]
[1763585503022,18.12096,133.1,133.06,7.05891694]
[1763585503216,18.80096,133.1,133.06,7.05891694]
[1763585503390,0.68,133.09,133.06,7.05891694]
[1763585503588,0.68,133.12,133.08,7.05891694]
[1763585503808,0.68,133.12,133.1,7.05891694]
[1763585504312,0.68,133.12,133.07,0.72]
[1763585504514,0.68,133.12,133.09,7.05891694]
[1763585505019,0.68,133.12,133.05,2.52]
[1763585505214,0.68,133.12,133.1,7.05891694]
[1763585505620,7.73891694,133.12,133.04,1.8]
[1763585505820,18.80096,133.11,133.07,7.05891694]
[1763585506005,18.12096,133.11,133.05,0.72]
[1763585506325,18.12096,133.11,133.03,0.72]
[1763585506625,18.12096,133.09,133.07,7.05891694]
[1763585506826,18.12096,133.09,133.06,7.05891694]
[1763585507122,0.68,133.08,133.06,7.05891694]
[1763585507918,0.68,133.08,133.07,7.05891694]
[1763585508121,18.80096,133.08,133.07,7.05891694]
[1763585509128,2.48,133.1,133.07,7.05891694]
[1763585509296,0.68,133.09,133.07,7.05891694]
[1763585509806,0.68,133.09,133.03,0.72]
[1763585510112,18.80096,133.09,133.06,7.05891694]
[1763585510721,0.71,133.08,133.06,7.05891694]
[1763585511433,0.71,133.13,133.07,7.76891694]
[1763585511611,0.71,133.12,133.1,7.05891694]
[1763585511817,18.12096,133.11,133.1,7.05891694]
[1763585512726,18.83096,133.11,133.1,7.05891694]
[1763585513831,18.12096,133.11,133.1,7.05891694]
[1763585514632,0.71,133.13,133.1,7.05891694]
[1763585514814,18.83096,133.13,133.11,7.05891694]
[1763585515124,18.12096,133.12,133.11,7.05891694]
[1763585515323,18.12096,133.12,133.1,7.05891694]
[1763585515324,18.83096,133.12,133.1,7.05891694]
[1763585515624,18.83096,133.11,133.09,7.05891694]
[1763585515924,0.71,133.14,133.06,0.71]
[1763585516111,0.71,133.13,133.06,0.71]
[1763585516311,0.71,133.13,133.11,7.05891694]
[1763585517029,18.83096,133.13,133.11,7.05891694]
[1763585517830,18.83096,133.13,133.12,7.05891694]
[1763585518037,2.51,133.15,133.12,7.05891694]
[1763585518330,2.51,133.15,133.13,7.05891694]
[1763585518526,1.8,133.15,133.13,7.05891694]
[1763585518724,0.71,133.14,133.13,7.05891694]
[1763585519033,18.83096,133.14,133.13,7.05891694]
[1763585520500,18.12096,133.14,133.13,7.05891694]
[1763585520727,18.83096,133.14,133.1,0.71]
[1763585520900,0.71,133.13,133.06,0.71]
[1763585521104,1.8,133.12,133.09,7.05891694]
[1763585521332,2.51,133.12,133.1,7.05891694]
[1763585521835,0.71,133.11,133.09,7.05891694]
[1763585522021,0.71,133.11,133.08,7.05891694]
[1763585522423,0.71,133.11,133.09,7.05891694]
[1763585524142,0.71,133.11,133.1,7.05891694]
[1763585524301,0.71,133.11,133.09,7.05891694]
[1763585524497,1.8,133.12,133.09,62.1]
[1763585524702,0.71,133.11,133.09,69.15891694]
[1763585524899,0.71,133.11,133.09,62.1]
[1763585525204,0.71,133.11,133.09,69.15891694]
[1763585525427,1.8,133.12,133.09,69.15891694]
[1763585525622,0.71,133.11,133.09,69.15891694]
[1763585526933,0.71,133.11,133.1,7.05891694]
[1763585527710,1.8,133.12,133.1,7.05891694]
[1763585528030,2.51,133.12,133.1,7.05891694]
[1763585529209,18.12096,133.11,133.1,7.05891694]
[1763585529860,1.8,133.14,133.1,69.86891694]
[1763585530055,19.92096,133.14,133.13,7.05891694]
[1763585530337,10.59882769,133.17,133.13,7.05891694]
[1763585530338,0.1,133.17,133.13,7.05891694]
[1763585530644,1.7,133.24,133.16,7.05891694]
[1763585530841,1.7,133.24,133.14,0.71]
[1763585530842,0.81,133.26,133.23,7.05891694]
[1763585531008,0.71,133.25,133.17,1.8]
[1763585531209,0.71,133.25,133.22,7.05891694]
[1763585531409,18.12096,133.23,133.22,7.05891694]
[1763585531638,17.62096,133.23,133.22,7.05891694]
[1763585531930,9.78882769,133.25,133.22,7.05891694]
[1763585532139,10.49882769,133.25,133.19,0.71]
[1763585532439,0.71,133.24,133.22,7.05891694]
[1763585532820,0.71,133.24,133.17,0.71]
[1763585533018,7.76891694,133.24,133.14,11.58882769]
[1763585533341,7.76891694,133.24,133.2,7.05891694]
[1763585533635,9.78882769,133.25,133.18,7.05891694]
[1763585533636,18.12096,133.22,133.18,7.05891694]
[1763585533828,18.12096,133.18,133.17,7.05891694]
[1763585534438,18.83096,133.18,133.16,7.05891694]
[1763585534741,18.83096,133.18,133.17,7.05891694]
[1763585534742,18.12096,133.18,133.17,7.05891694]
[1763585535124,18.12096,133.21,133.17,7.76891694]
[1763585535328,18.12096,133.21,133.2,7.05891694]
[1763585535727,18.12096,133.23,133.2,7.05891694]
[1763585535937,18.12096,133.23,133.22,7.05891694]
[1763585536446,0.71,133.24,133.22,7.05891694]
[1763585536830,18.12096,133.23,133.22,7.05891694]
[1763585537046,18.12096,133.22,133.2,69.15891694]
[1763585537226,18.12096,133.21,133.2,62.1]
[1763585537546,18.12096,133.21,133.19,7.05891694]
[1763585537547,18.83096,133.21,133.19,7.05891694]
[1763585537743,0.71,133.2,133.15,62.81]
[1763585537942,0.71,133.2,133.18,7.05891694]
[1763585538614,0.71,133.2,133.19,7.05891694]
[1763585538817,0.71,133.2,133.18,7.05891694]
[1763585539041,1.8,133.21,133.19,7.05891694]
[1763585539246,1.8,133.21,133.2,7.05891694]
[1763585539547,1.8,133.21,133.19,7.05891694]
[1763585540041,2.47,133.21,133.19,7.05891694]
[1763585540421,30.37978769,133.23,133.2,7.05891694]
[1763585540626,30.37978769,133.23,133.21,7.05891694]
[1763585540829,0.67,133.22,133.2,7.05891694]
[1763585541439,0.67,133.22,133.15,0.67]
[1763585541646,0.67,133.22,133.19,7.05891694]
[1763585541854,29.70978769,133.23,133.21,7.05891694]
[1763585542048,10.45882769,133.22,133.19,7.05891694]
[1763585542236,18.12096,133.17,133.11,62.1]
[1763585542440,18.12096,133.17,133.16,7.05891694]
[1763585542639,18.79096,133.17,133.15,7.05891694]
[1763585542938,18.79096,133.16,133.15,7.05891694]
[1763585543250,18.79096,133.16,133.14,7.05891694]
[1763585543652,18.79096,133.16,133.15,7.05891694]
[1763585543854,1.8,133.17,133.15,7.05891694]
[1763585544151,1.8,133.17,133.16,7.05891694]
[1763585545050,10.45882769,133.21,133.16,7.05891694]
[1763585545352,2.47,133.21,133.19,7.05891694]
[1763585545553,0.67,133.21,133.19,7.05891694]
[1763585545939,18.12096,133.2,133.19,7.05891694]
[1763585547155,18.81096,133.2,133.19,7.05891694]
[1763585547847,18.81096,133.2,133.18,7.05891694]
[1763585548241,18.81096,133.19,133.18,7.05891694]
[1763585548440,18.12096,133.18,133.16,7.05891694]
[1763585548761,18.12096,133.2,133.17,7.05891694]
[1763585548942,18.12096,133.2,133.19,7.05891694]
[1763585549444,18.12096,133.2,133.12,7.05891694]
[1763585549645,0.69,133.25,133.19,7.72891694]
[1763585549836,0.69,133.25,133.13,30.66093317]
[1763585549837,1.8,133.25,133.23,7.05891694]
[1763585550041,1.8,133.25,133.24,7.05891694]
[1763585550246,20.61096,133.25,133.24,7.05891694]
[1763585550450,20.61096,133.25,133.2,7.72891694]
[1763585550856,20.61096,133.25,133.23,7.05891694]
[1763585551056,18.12096,133.23,133.18,0.67]
[1763585551242,18.12096,133.23,133.19,7.05891694]
[1763585551557,0.69,133.22,133.14,2.47]
[1763585551767,18.81096,133.24,133.21,7.05891694]
[1763585551938,7.74891694,133.23,133.14,0.67]
[1763585552260,8.85891694,133.22,133.18,7.05891694]
[1763585552462,7.05891694,133.21,133.17,7.05891694]
[1763585552759,18.12096,133.18,133.16,7.05891694]
[1763585552963,18.12096,133.18,133.16,11.05925616]
[1763585553146,18.81096,133.18,133.13,0.67]
[1763585553346,18.81096,133.18,133.16,11.05925616]
[1763585553565,18.81096,133.18,133.13,0.67]
[1763585553872,18.81096,133.18,133.16,11.05925616]
[1763585553873,0.69,133.18,133.16,11.05925616]
[1763585554172,1.8,133.19,133.1,0.67]
[1763585554173,18.12096,133.16,133.1,0.67]
[1763585554345,1.8,133.16,133.1,0.67]
[1763585554542,1.8,133.16,133.12,11.05925616]
[1763585554870,11.74925616,133.15,133.11,11.05925616]
[1763585555056,18.12096,133.11,133.08,0.67]
[1763585555234,12.85925616,133.16,133.1,11.05925616]
[1763585555438,18.12096,133.13,133.12,11.05925616]
[1763585555834,0.69,133.15,133.12,11.05925616]
[1763585556063,18.12096,133.15,133.12,0.67]
[1763585556363,18.12096,133.14,133.12,11.05925616]
[1763585559066,18.81096,133.14,133.09,0.67]
[1763585559269,18.81096,133.14,133.12,11.05925616]
[1763585559466,0.69,133.13,133.1,11.05925616]
[1763585559642,2.49,133.13,133.1,11.05925616]
[1763585559849,2.49,133.13,133.11,11.05925616]
[1763585560049,0.69,133.13,133.11,11.05925616]
[1763585560245,1.8,133.14,133.11,11.05925616]
[1763585560571,2.49,133.14,133.11,11.05925616]
[1763585560951,0.69,133.13,133.1,11.05925616]
[1763585562050,1.8,133.14,133.11,11.05925616]
[1763585562250,18.12096,133.13,133.06,1.8]
[1763585562466,18.12096,133.13,133.12,11.05925616]
[1763585562672,19.92096,133.14,133.12,11.05925616]
[1763585562872,18.12096,133.14,133.13,11.05925616]
[1763585563771,18.12096,133.14,133.1,0.67]
[1763585564069,2.49,133.16,133.1,0.67]
[1763585564070,19.92096,133.16,133.13,11.05925616]
[1763585564258,18.12096,133.14,133.13,11.05925616]
[1763585564863,18.81096,133.14,133.12,11.05925616]
[1763585565077,18.12096,133.12,133.1,11.05925616]
[1763585565273,18.12096,133.12,133.1,73.15925616]
[1763585565576,18.81096,133.12,133.1,73.15925616]
[1763585566157,18.12096,133.12,133.1,73.15925616]
[1763585566356,18.81096,133.12,133.1,73.15925616]
[1763585566766,18.81096,133.12,133.11,11.05925616]
[1763585566961,18.81096,133.12,133.08,0.67]
[1763585567163,18.81096,133.12,133.09,11.05925616]
[1763585567385,18.81096,133.12,133.1,11.05925616]
[1763585570366,11.05925616,133.18,133.11,11.71925616]
[1763585570691,0.67,133.16,133.13,11.05925616]
[1763585570870,18.12096,133.15,133.13,11.05925616]
[1763585571184,0.67,133.16,133.13,11.05925616]
[1763585571788,18.12096,133.14,133.13,11.05925616]
[1763585575096,18.12096,133.14,133.13,73.15925616]
[1763585575397,18.12096,133.14,133.13,73.81925616]
[1763585575897,18.12096,133.15,133.13,73.81925616]
[1763585576068,18.12096,133.15,133.14,11.05925616]
[1763585578489,18.12096,133.15,133.13,62.1]
[1763585578666,18.12096,133.15,133.14,11.05925616]
[1763585579791,20.59096,133.15,133.13,62.1]
[1763585580099,18.79096,133.14,133.13,62.1]
[1763585580285,18.12096,133.14,133.13,73.15925616]
[1763585580594,19.92096,133.15,133.13,73.81925616]
[1763585580779,19.92096,133.15,133.14,11.05925616]
[1763585580979,19.92096,133.15,133.14,73.15925616]
[1763585580980,18.12096,133.15,133.14,73.15925616]
[1763585581179,18.12096,133.15,133.14,62.1]
[1763585581583,18.79096,133.15,133.14,62.1]
[1763585581900,2.47,133.15,133.14,62.1]
[1763585582272,20.59096,133.15,133.14,62.1]
[1763585582473,18.79096,133.15,133.14,62.1]
[1763585582673,20.59096,133.15,133.14,62.1]
[1763585583400,31.65021616,133.15,133.14,62.1]
[1763585583778,2.47,133.15,133.14,62.1]
[1763585584190,19.92096,133.15,133.14,62.1]
[1763585584480,18.12096,133.15,133.14,62.76]
[1763585585296,18.12096,133.15,133.14,62.1]
[1763585586888,18.12096,133.15,133.14,62.76]
[1763585587598,18.12096,133.15,133.14,73.81925616]
[1763585587788,9.78882769,133.2,133.14,75.61925616]
[1763585588110,11.05925616,133.24,133.19,11.05925616]
[1763585588288,1.8,133.24,133.18,1.8]
[1763585588489,0.67,133.23,133.18,1.8]
[1763585588800,12.85925616,133.24,133.2,11.05925616]
[1763585588801,18.12096,133.21,133.2,11.05925616]
[1763585589003,1.8,133.24,133.2,11.05925616]
[1763585589177,2.47,133.24,133.2,11.71925616]
[1763585589380,13.52925616,133.24,133.2,0.66]
[1763585589582,11.05925616,133.21,133.16,12.85925616]
[1763585589800,18.12096,133.18,133.16,12.85925616]
[1763585590004,18.12096,133.18,133.17,11.71925616]
[1763585590407,18.12096,133.19,133.17,11.71925616]
[1763585590710,18.12096,133.19,133.18,11.71925616]
[1763585591897,2.47,133.24,133.18,11.71925616]
[1763585592206,18.12096,133.21,133.2,11.05925616]
[1763585592500,2.47,133.24,133.2,11.05925616]
[1763585592802,18.12096,133.22,133.2,11.05925616]
[1763585593187,18.12096,133.22,133.21,11.05925616]
[1763585594491,18.12096,133.22,133.21,11.71925616]
[1763585595205,18.12096,133.22,133.21,11.05925616]
[1763585595401,18.12096,133.22,133.19,2.46]
[1763585595595,18.12096,133.22,133.2,11.71925616]
[1763585595793,18.12096,133.21,133.2,11.05925616]
[1763585596116,18.79096,133.21,133.18,11.05925616]
[1763585596494,18.12096,133.19,133.18,11.05925616]
[1763585596891,18.12096,133.19,133.17,11.05925616]